Cogmind - Beta 13 @@@ ROGUE MODE // 2024.04.03 @ 16:01:37 Player: donk Result: Destroyed by YI-UF0 with YI-UF0's Doublenader Performance ------------- Evolutions (0) 0 Regions Visited (2) 400 Robots Destroyed (17) 85 Value Destroyed (280) 280 Prototype IDs (0) 0 Alien Tech Used (0) 0 Bonus (0) 0 TOTAL SCORE: 765 Bonus ------- None Cogmind --------- Core Integrity 0/250 Matter 224/300 Energy 100/100 System Corruption 2% Temperature Cool (0) Movement Rolling (130) Ox2 Location -10/Mines Parts ------- > --- POWER (1) -------- (None) > --- PROPULSION (2) --- Compact Wheel > --- UTILITY (2) ------ High-capacity Storage Unit > --- WEAPON (2) ------- (None) > --- INVENTORY (20) --- Light Ion Engine Aluminum Leg Aluminum Leg Small Matter Pod (0) Terrain Scanner EM Pulse Gun Medium Laser Medium Laser Assault Rifle Peak State ------------ > --- POWER ------------ Ion Engine > --- PROPULSION ------- Light Treads Light Treads > --- UTILITY ---------- High-capacity Storage Unit Sensor Array > --- WEAPON ----------- Assault Rifle Light Assault Rifle > --- INVENTORY -------- Light Ion Engine Aluminum Leg Aluminum Leg Compact Wheel Small Matter Pod Terrain Scanner EM Pulse Gun Medium Laser Grenade Launcher Grenade Launcher [Rating: 8] Favorites ----------- Power Ion Engine Engine Ion Engine Propulsion Light Treads Treads Light Treads Wheel Compact Wheel Utility Sensor Array Device Sensor Array Storage High-capacity Storage Unit Weapon Light Assault Rifle Energy Gun EM Pulse Gun Energy Cannon Beam Cannon Ballistic Gun Light Assault Rifle Launcher Grenade Launcher Build | -11 -10 -10 ------- Run | Yrd Mat Min Slots Evolved . | . . . Power . | . . . Propulsion . | . . . Utility . | . . . Weapon . | . . . Parts Attached 22 | 5 14 3 Power 1 | 1 . . Engine 1 | 1 . . Core . | . . . Reactor . | . . . Propulsion 3 | 2 . 1 Treads 2 | 2 . . Leg . | . . . Wheel 1 | . . 1 Hover . | . . . Flight . | . . . Utility 4 | . 4 . Device 2 | . 2 . Storage 2 | . 2 . Processor . | . . . Hackware . | . . . Protection . | . . . Artifact . | . . . Weapon 14 | 2 10 2 Energy Gun 4 | 1 3 . Energy Cannon 1 | . 1 . Ballistic Gun 3 | 1 2 . Ballistic Cannon . | . . . Launcher 6 | . 4 2 Special Weapon . | . . . Impact Weapon . | . . . Slashing Weapon . | . . . Piercing Weapon . | . . . Special Melee Weapon . | . . . Unidentified Prototypes . | . . . Parts Lost 7 | . . 7 Power 1 | . . 1 Propulsion 2 | . . 2 Utility 1 | . . 1 Weapon 3 | . . 3 Highest Loss Streak 7 | . . 7 To Critical Strikes . | . . . Average Slot Usage (%) 99 | . 99 98 Engine 13 | . 14 13 Treads 27 | . 28 27 Device 13 | . 13 13 Storage 13 | . 13 14 Energy Gun 4 | . 6 . Energy Cannon 4 | . 1 14 Ballistic Gun 14 | . 17 . Launcher 4 | . 2 13 Naked Turns . | . . . Heaviest Build 52 | 8 51 52 Greatest Support 40 | 40 40 40 Greatest Overweight (x) 2 | . 1 2 Average Overweight (x) . | . . 1 Largest Inventory Capacity 20 | 5 20 20 Average Capacity 14 | 5 13 20 Most Carried 12 | 5 12 11 Average Carried 8 | 3 8 10 Final Capacity 20 | 5 20 20 Final Carried 11 | 5 11 9 Class Distribution -------------------- 100% | Mutant Dominant Class ---------------- Mutant | -10/Materials Mutant | -10/Mines Resources | -11 -10 -10 ----------- Run | Yrd Mat Min Matter Collected 569 | 195 313 61 Remotely . | . . . Salvage Created 367 | . 323 44 Parts 25 | . 19 6 Haulers Intercepted 1 | . 1 . Recyclers Shooed 1 | . 1 . Parts Field Recycled . | . . . Retrieved Matter . | . . . Parts Self-Destructed . | . . . Prevented . | . . . Kills | -11 -10 -10 ------- Run | Yrd Mat Min Combat Hostiles Destroyed 14 | . 13 1 Guns 6 | . 6 . AOE 8 | . 7 1 Classes Destroyed 5 | . 5 . Hauler 1 | . 1 . Recycler 1 | . 1 . Watcher 1 | . 1 . Swarmer 10 | . 9 1 Grunt 4 | . 4 . Best Kill Streak 5 | . 5 1 Combat Bots Only 5 | . 5 1 Max Kills in Single Turn 2 | . 2 1 Gunslinging 1 | . 1 . Exploded 2 | . 2 1 Melee . | . . . Uniques/NPCs Destroyed . | . . . Combat | -11 -10 -10 -------- Run | Yrd Mat Min Hostile Shots Fired 95 | . 51 44 Missed 24 | . 11 13 Damage Taken 1078 | . 428 650 Core 250 | . 62 188 Absorbed by Shields . | . . . Core Remaining (%) 100 | 100 . . Volleys Fired 38 | . 35 3 Largest 2 | . 2 2 Hottest 90 | . 70 90 Shots Fired 57 | . 53 4 Gun 34 | . 34 . Cannon 3 | . . 3 Launcher 20 | . 19 1 Special . | . . . Kinetic 23 | . 23 . Thermal 8 | . 5 3 Explosive 20 | . 19 1 Electromagnetic 6 | . 6 . Robot Hit Streak 10 | . 10 1 Robot Miss Streak 3 | . 3 1 Penetration Max . | . . . Secondary Targets 1 | . 1 . Max Gunslinging Chain 1 | . 1 . Shots Hit Robots 30 | . 28 2 Core Hits 23 | . 20 3 Critical Kills . | . . . Critical Parts Destroyed . | . . . Critical Strikes . | . . . Melee Attacks . | . . . Impact . | . . . Slashing . | . . . Piercing . | . . . Sneak Attacks . | . . . Combat Hostiles . | . . . Follow-up Attacks . | . . . Damage Inflicted 1133 | . 946 187 Guns 203 | . 203 . Cannons 35 | . . 35 Explosions 895 | . 743 152 Melee . | . . . Ramming . | . . . Kinetic 121 | . 121 . Thermal 72 | . 37 35 Explosive 895 | . 743 152 Electromagnetic 45 | . 45 . Impact . | . . . Slashing . | . . . Piercing . | . . . Highest Corruption 2 | . 2 2 Average Corruption 2 | . 2 2 Corruption Purged . | . . . Corruption Blocked . | . . . Effects 10 | . 4 6 Message Errors 4 | . 2 2 Matter Fused 3 | . 2 1 Heat Flow Errors 1 | . . 1 Data Loss (minor) 1 | . . 1 Alerts 1 | . . 1 Overload Shots . | . . . Overflow Damage 8 | . 8 . Projectiles . | . . . Explosions 8 | . 8 . Melee . | . . . Knockbacks . | . . . Impact . | . . . Kinetic . | . . . Secondary . | . . . Self-Inflicted Damage 86 | . 86 . Shots 5 | . 5 . Rammed . | . . . Targets Rammed . | . . . Kicked . | . . . Crushed . | . . . Highest Temperature 112 | . 40 112 Average Temperature 20 | . 16 31 Received Heat Transfer 30 | . 30 . Siege Activations . | . . . Robots Corrupted . | . . . Combat Hostiles . | . . . Parts Fried . | . . . Impact Corruptions . | . . . Robots Melted . | . . . Combat Hostiles . | . . . Parts Melted . | . . . Heat Transferred 185 | . 111 74 Parts Sabotaged . | . . . Parts Stolen . | . . . Parts Stripped . | . . . Power Chain Reactions . | . . . Alert | -11 -10 -10 ------- Run | Yrd Mat Min Peak Influence 211 | . 211 12 Initial 3 | . . 3 Average 64 | . 84 5 Maximum Alert Level 1 | . 1 . Low Security (%) 98 | 100 97 100 Level 1 1 | . 2 . Level 2 . | . . . Level 3 . | . . . Level 4 . | . . . Level 5 . | . . . High Security . | . . . Max Security . | . . . Squads Dispatched 1 | . 1 . Investigation 1 | . 1 . Extermination . | . . . Reinforcement . | . . . Assault . | . . . Garrison . | . . . Intercept . | . . . Searches Triggered . | . . . Construction Impeded . | . . . Haulers Reinforced . | . . . Active Scanning Responses . | . . . Cargo Convoy Interrupts . | . . . Stealth | -11 -10 -10 --------- Run | Yrd Mat Min Distress Signals . | . . . Communications Jammed . | . . . Distress Signals . | . . . Times Spotted 32 | . 15 17 Peak Tracking Total 14 | . 3 14 Tactical Retreats 2 | . 1 1 Traps | -11 -10 -10 ------- Run | Yrd Mat Min Traps Triggered 2 | . 2 . Indirectly . | . . . Trap Hack Attempts . | . . . Triggered . | . . . Disarmed . | . . . Reprogrammed . | . . . Reused . | . . . Traps Extracted . | . . . Installed . | . . . Triggered . | . . . Machines | -11 -10 -10 ---------- Run | Yrd Mat Min Machines Disabled 2 | . 2 . Max in Single Turn 1 | . 1 . Machines Repaired . | . . . Machines Dismantled . | . . . Machines Sabotaged . | . . . Overloaded Fab Kills . | . . . Hacking | -11 -10 -10 --------- Run | Yrd Mat Min Machines Accessed 2 | . 2 . Terminals 2 | . 2 . Fabricators . | . . . Repair Stations . | . . . Recycling Units . | . . . Scanalyzers . | . . . Garrison Access . | . . . Total Hacks 4 | . 4 . Successful . | . . . Failed 4 | . 4 . Catastrophic . | . . . Database Lockouts . | . . . Manual 2 | . 2 . Terminals 4 | . 4 . Fabricators . | . . . Repair Stations . | . . . Recycling Units . | . . . Scanalyzers . | . . . Garrison Access . | . . . Terminal Hacks . | . . . Fabricator Hacks . | . . . Repair Station Hacks . | . . . Recycling Unit Hacks . | . . . Scanalyzer . | . . . Garrison Access Hacks . | . . . Unauthorized Hacks . | . . . Terminals . | . . . Fabricators . | . . . Repair Stations . | . . . Recycling Units . | . . . Scanalyzers . | . . . Garrison Access . | . . . Data Cores Recovered . | . . . Used . | . . . Hacking Detections 2 | . 2 . Full Trace Events . | . . . Feedback Events . | . . . Feedback Blocked . | . . . Robot Schematics Acquired . | . . . Robots Built . | . . . Authchips . | . . . Time . | . . . Total Robot Build Rating . | . . . Part Schematics Acquired . | . . . Parts Built . | . . . Authchips . | . . . Time . | . . . Total Part Build Rating . | . . . Parts Repaired . | . . . Time . | . . . Parts Recycled . | . . . Recycled Matter . | . . . Retrieved Matter . | . . . Retrieved Components . | . . . Parts Scanalyzed . | . . . Part Schematics Acquired . | . . . Parts Damaged . | . . . Bothacking | -11 -10 -10 ------------ Run | Yrd Mat Min Used RIF Installer . | . . . Robots Hacked . | . . . Non-combat . | . . . Combat . | . . . Robot Hacks Applied . | . . . Relay Couplers Released . | . . . Fabnet Peak Effective % . | . . . Robots Rewired . | . . . Allies Hacked . | . . . Hacks Repelled . | . . . Allies | -11 -10 -10 -------- Run | Yrd Mat Min Total Allies . | . . . Largest Group . | . . . Highest-Rated Group . | . . . Highest-Rated Ally . | . . . Total Orders . | . . . Ally Attacks . | . . . Total Damage . | . . . Kills . | . . . Allies Corrupted . | . . . Allies Melted . | . . . Intel | -11 -10 -10 ------- Run | Yrd Mat Min Robot Analysis Total . | . . . Derelict Logs Recovered 1 | . . 1 Drone Launches . | . . . Drone Recoveries . | . . . Exploration | -11 -10 -10 ------------- Run | Yrd Mat Min Turns Passed 1727 | 70 1293 364 Spaces Moved 687 | 39 507 141 Core 3 | 3 . . Treads 678 | 36 507 135 Legs . | . . . Wheels 6 | . . 6 Hover . | . . . Flight . | . . . Fastest Speed 50 | 50 160 130 Average Speed 203 | 151 198 235 Slowest Speed 240 | 160 240 240 Overloaded Moves . | . . . Propulsion Burnouts . | . . . Robots Hopped . | . . . Cave-ins Triggered . | . . . Exploration Rate (%) 38 | 5 59 50 Regions Visited 2 Branch Regions 1 Pre-discovered Areas 1 | . . 1 Known Exits Taken . | . . . Unknown Exits Taken 2 | 1 1 . Scrap Searched 1 | . . 1 Spaces Dug . | . . . Terrain Destroyed 92 | . 85 7 Melee . | . . . Projectile . | . . . AOE 92 | . 85 7 Terrain Rammed . | . . . Walls Destroyed . | . . . Machines Disabled . | . . . Actions | -11 -10 -10 --------- Run | Yrd Mat Min Total 957 | 48 740 169 Wait 193 | . 171 22 Move 685 | 38 506 141 Hop . | . . . Pick Up 15 | 5 10 . Fast Attach 6 | 5 1 . Attach 3 | . 1 2 Detach . | . . . Swap 13 | . 12 1 Drop 4 | . 4 . Fire 38 | . 35 3 Melee . | . . . Ram . | . . . Kick . | . . . Crush . | . . . Escape Stasis . | . . . Rewire . | . . . Trap . | . . . Miscellaneous . | . . . Route ------- -11/Scrapyard -10/Materials (discovered 3 exits: [*Mat] / [*Min] / [*Sub]) -10/Mines History --------- Turn | Location | Event 12 | -11/Scrapyard | Discovered new exit (range 14) 71 | -11/Scrapyard | Entered Materials 306 | -10/Materials | Build established: Mutant 610 | -10/Materials | Discovered new exit (range 13) 845 | -10/Materials | Discovered new exit (range 8) 1254 | -10/Materials | Discovered new exit (range 12) 1364 | -10/Materials | Entered Mines 1378 | -10/Mines | Met a Derelict bent on vengeance 1534 | -10/Mines | Learned location of Zion (-7) 1654 | -10/Mines | YI-UF0 nonchalantly dropped a Grenade Launcher on the ground 1707 | -10/Mines | Assembled infested the area 1720 | -10/Mines | Core integrity fell below 50% 1727 | -10/Mines | Core integrity fell below 20% 1728 | -10/Mines | Destroyed by YI-UF0 with YI-UF0's Doublenader Last Messages --------------- payload. 01712_ D-53 Grenadier unfolds itself. 01712_ K-01 Serf destroyed. 01713_ Sensor Array destroyed. 01715_ Ion Engine destroyed. 01715_ Grenade Launcher destroyed. 01717_ Lgt. Treads destroyed. 01717_ T-07 Excavator destroyed. 01717_ S-10 Pest destroyed. 01717_ Grenade Launcher destroyed. 01717_ Lgt. Treads destroyed. 01717_ S-10 Pest destroyed. 01719_ YI-UF0: "BAROOM!" 01719_ S-10 Pest destroyed. 01723_ The unstable cave ceiling collapses. 01725_ as-26817 destroyed. 01725_ as-21497 destroyed. 01725_ Beam Cannon destroyed. 01725_ D-53 Grenadier destroyed. 01728_ The unstable cave ceiling collapses. Map ----- +----------------------------------------------------+ | | | | | | | | | | | ?????????????????????????????????????????????????? | | ?????????????????????????????????????????????????? | | ?????????????????????????????????????????????????? | | ?????????????????????????????????????????????????? | | ?????????????????????????????????????????????????? | | ?????????????????????????????????????????????????? | | ?????????????????????????????????????????????????? | | ?????????????????????? ??????????????????????????? | | ????????????????????# ????????###### ????????? | | ????????????????????# ???????? #??????? | | ????????????????????? ??????? #??????? | | ?????????????????????? ????### #??????? | | ??????????????????????# ???# #???????? | | ??????????????????????# ???# # #???????? | | ??????????????????????# #### #???????? | | ??????????????????????? #???????? | | ????????????????????????? #????????? | | ??????????????????????????# #????????? | | ?????????????????????????## #?????????? | | ??????????????????######## #?????????? | | ??????????????????# ] @ #????????? | | ??????????????????# u#### # #???????? | | ??????????????????# #??## a a #??????? | | ??????????????????# #???## ## #??????? | | ??????????????????# #????## g #????#??????? | | ??????????????????# #?????## ##???????????? | | #??????????####??## #??????? a #????????????? | | # ????????? #??# #??????? a ???????????? | | ? ###??????# #### ####???? ###??????????? | | ?? ??????# ##???? aaa #????????????? | | ??# ??????# ##### ##??? a ????????????? | | ??# ??????# #???# """ #??? ???????????? | | ??# #???### #??## """ #??? # ??????????? | | ???# #### #### """ ##??? ## ???????????? | | ???# ## | ##???# ??# ????????????? | | ???# ##????#???? ?????????????? | | ???## #### ##??????????# ?????????????? | | ????## #??###??????????????????????????? | | ????## # #??????????????????????????????? | | ???## ## ## #??????????????????????????????? | | ??## ## ### ##??????????????????????????????? | | ??# ### #?####???????????????????????????????? | | ??#/! #?# #????????????????????????????????????? | | ??# #?# #????????????????????????????????????? | | ?## ### #????????????????????????????????????? | +----------------------------------------------------+ Best States ------------- Heat Dissipation 25 Energy Generation 10 Energy Capacity 250 Matter Stores 259 Matter Capacity 300 Sight Range 16 Robot Scan Range 14 Terrain Scan Range 14 Terrain Scan Density 10 Evasion (%) 40 Recoil Reduction 2 Item Schematics ----------------- None Robot Schematics ------------------ None Fabricated ------------ Nothing Alien Tech Used ----------------- None Achievements -------------- None Challenges ------------ None Game ------ Seed AdvancedGaussGreatsword Manual? 0 Play Time 00:13:48 Cumulative 8.3 hours Start 2024.04.03 @ 15:49:46 End 2024.04.03 @ 16:01:37 Sessions 1 Manual Loads 0 Difficulty Rogue Special Mode None Game No. 12 Rogue 12 Adventurer 0 Explorer 0 Win Type - Total 0 Types 0/0/0/0/0/0/0/0/0 Lore% 13 Gallery% 17 Achievement% 14 Wizard Run 0 Options --------- Layout 1 ASCII 0 Keyboard 0 Movement Mouse Keybinds 0 Fullscreen 2 Font 24/Terminus Map View 50x35 Zoom Use 0% Tactical HUD 1 Map Filters NONE Filters NONE Steam 1 RUN: 16c3b214-ae04-441d-af1b-b5d0f2515432